Cogmind - Beta 15 @@@ ROGUE MODE // 2025.08.17 @ 09:05:37 Player: KeKe Result: Destroyed by 0Y-JET(R) with Subdweller Machine Gun Performance ------------- Evolutions (0) 0 Regions Visited (2) 400 Robots Destroyed (11) 55 Value Destroyed (191) 191 Prototype IDs (0) 0 Alien Tech Used (0) 0 Bonus (0) 0 TOTAL SCORE: 646 Bonus ------- None Cogmind --------- Core Integrity 0/250 Matter 264/300 Energy 146/250 System Corruption 0% Temperature Cool (0) Movement Rolling (80) Location -10/Subcaves Parts ------- > --- POWER (1) -------- Ion Engine > --- PROPULSION (2) --- Wheel > --- UTILITY (2) ------ (None) > --- WEAPON (2) ------- Assault Rifle Light Cannon > --- INVENTORY (5) ---- Flight Unit Cargo Storage Unit Scrap Shield Peak State ------------ > --- POWER ------------ Light Ion Engine > --- PROPULSION ------- Wheel Wheel > --- UTILITY ---------- Cargo Storage Unit > --- WEAPON ----------- Assault Rifle Light Cannon > --- INVENTORY -------- Ion Engine Flight Unit Flight Unit Flight Unit Flight Unit Flight Unit Cargo Storage Unit High-capacity Matter Pod Weapon Shielding Scrap Shield Assault Rifle Assault Rifle Light Assault Rifle Light Assault Rifle Light Assault Rifle Light Assault Rifle [Rating: 9] Favorites ----------- Power Light Ion Engine Engine Light Ion Engine Propulsion Wheel Leg Aluminum Leg Wheel Wheel Utility Cargo Storage Unit Storage Cargo Storage Unit Weapon Assault Rifle Ballistic Gun Assault Rifle Ballistic Cannon Light Cannon Build | -11 -10 -10 ------- Run | Yrd Mat Sub Slots Evolved . | . . . Power . | . . . Propulsion . | . . . Utility . | . . . Weapon . | . . . Parts Attached 8 | . 6 2 Power 2 | . 1 1 Engine 2 | . 1 1 Core . | . . . Reactor . | . . . Propulsion 2 | . 2 . Treads . | . . . Leg . | . . . Wheel 2 | . 2 . Hover . | . . . Flight . | . . . Utility 1 | . 1 . Device . | . . . Storage 1 | . 1 . Processor . | . . . Hackware . | . . . Protection . | . . . Artifact . | . . . Weapon 3 | . 2 1 Energy Gun . | . . . Energy Cannon . | . . . Ballistic Gun 2 | . 1 1 Ballistic Cannon 1 | . 1 . Launcher . | . . . Special Weapon . | . . . Impact Weapon . | . . . Slashing Weapon . | . . . Piercing Weapon . | . . . Special Melee Weapon . | . . . Unidentified Prototypes . | . . . Parts Lost 3 | . . 3 Power 1 | . . 1 Propulsion 1 | . . 1 Utility . | . . . Weapon 1 | . . 1 Highest Loss Streak 2 | . . 2 To Critical Strikes . | . . . Average Backups 11 | 6 10 15 Power 1 | 1 1 . Propulsion 4 | 4 4 5 Utility 2 | . 1 3 Weapon 4 | 1 3 5 Tool/Special . | . . . Unused Backups 19 | . 6 13 Power 2 | . 2 . Propulsion 9 | . 4 5 Utility 4 | . . 4 Weapon 4 | . . 4 Tool/Special . | . . . Average Slot Usage (%) 83 | . 85 79 Engine 13 | . 14 11 Leg 5 | . 7 . Wheel 22 | . 20 27 Storage 14 | . 14 14 Ballistic Gun 20 | . 23 11 Ballistic Cannon 7 | . 4 14 Peak Build Rating 9 | 6 8 9 Average Rating 7 | 6 7 8 On Entrance 6 | 6 6 8 Naked Turns . | . . . Heaviest Build 148 | 11 148 148 Greatest Support 20 | 20 20 20 Greatest Overweight (x) 7 | . 7 7 Average Overweight (x) 4 | . 4 7 Largest Inventory Capacity 30 | 8 30 30 Average Capacity 24 | 8 24 30 Most Carried 18 | 6 16 18 Average Carried 12 | 6 11 17 Final Capacity 30 | 8 30 5 Final Carried 16 | 6 16 5 Class Distribution -------------------- 77% | Hauler-Mutant 22% | Mutant Dominant Class ---------------- Hauler-Mutant | -10/Materials Hauler-Mutant | -10/Subcaves Resources | -11 -10 -10 ----------- Run | Yrd Mat Sub Matter Collected 491 | 228 170 93 Remotely . | . . . Salvage Created 292 | 107 158 27 Parts 20 | 5 13 2 Haulers Intercepted . | . . . Recyclers Shooed . | . . . Parts Field Recycled . | . . . Retrieved Matter . | . . . Parts Self-Destructed 6 | . . 6 Prevented . | . . . Kills | -11 -10 -10 ------- Run | Yrd Mat Sub Combat Hostiles Destroyed 9 | . 8 1 Guns 8 | . 7 1 Cannons 1 | . 1 . Classes Destroyed 5 | 2 2 1 Tunneler 1 | 1 . . Recycler 1 | 1 . . Swarmer 6 | . 6 . Grunt 2 | . 2 . Subdweller 1 | . . 1 Best Kill Streak 3 | 2 3 1 Combat Bots Only 3 | . 3 1 Max Kills in Single Turn 1 | 1 1 1 Gunslinging . | . . . Exploded . | . . . Melee . | . . . Uniques/NPCs Destroyed . | . . . Combat | -11 -10 -10 -------- Run | Yrd Mat Sub Hostile Shots Fired 75 | . 46 29 Missed 21 | . 9 12 Hits 54 | . 37 17 Projectile 54 | . 37 17 Damage Taken 744 | . 310 434 Core 253 | . 100 153 Absorbed by Shields . | . . . Core Remaining (%) 100 | 100 . . Volleys Fired 34 | 7 22 5 Largest 2 | 2 2 2 Hottest 50 | 40 50 50 Shots Fired 68 | 14 44 10 Gun 51 | 14 32 5 Cannon 17 | . 12 5 Launcher . | . . . Special . | . . . Kinetic 68 | 14 44 10 Thermal . | . . . Explosive . | . . . Electromagnetic . | . . . Robot Hit Streak 9 | 9 4 9 Robot Miss Streak 3 | 2 3 1 Penetration Max . | . . . Secondary Targets 1 | . 1 . Max Gunslinging Chain 1 | . 1 . Shots Hit Robots 41 | 9 23 9 Core Hits 12 | 3 8 1 Critical Kills . | . . . Critical Parts Destroyed . | . . . Critical Strikes . | . . . Melee Attacks . | . . . Impact . | . . . Slashing . | . . . Piercing . | . . . Sneak Attacks . | . . . Combat Hostiles . | . . . Follow-up Attacks . | . . . Damage Inflicted 600 | 94 364 142 Guns 376 | 94 227 55 Cannons 224 | . 137 87 Explosions . | . . . Melee . | . . . Ramming . | . . . Kinetic 600 | 94 364 142 Thermal . | . . . Explosive . | . . . Electromagnetic . | . . . Impact . | . . . Slashing . | . . . Piercing . | . . . Highest Corruption . | . . . Average Corruption . | . . . Corruption Purged . | . . . Corruption Blocked . | . . . Overload Shots . | . . . Overflow Damage . | . . . Projectiles . | . . . Explosions . | . . . Melee . | . . . Knockbacks 5 | . 3 2 Impact . | . . . Kinetic 5 | . 3 2 Secondary . | . . . Self-Inflicted Damage . | . . . Shots . | . . . Rammed . | . . . Targets Rammed . | . . . Kicked . | . . . Crushed . | . . . Highest Temperature 2 | . 2 . Average Temperature 2 | . 2 . Received Heat Transfer 69 | . 36 33 Siege Activations . | . . . Martial Activations . | . . . Shielding Activations . | . . . Robots Disrupted . | . . . Combat Hostiles . | . . . Robots Corrupted . | . . . Combat Hostiles . | . . . Parts Fried . | . . . Impact Corruptions . | . . . Robots Melted . | . . . Combat Hostiles . | . . . Parts Melted . | . . . Heat Transferred . | . . . Parts Sabotaged . | . . . Parts Stolen . | . . . Parts Stripped . | . . . Power Chain Reactions . | . . . Alert | -11 -10 -10 ------- Run | Yrd Mat Sub Maximum Alert Level . | . . . Low Security (%) 100 | 100 100 . Level 1 . | . . . Level 2 . | . . . Level 3 . | . . . Level 4 . | . . . Level 5 . | . . . High Security . | . . . Max Security . | . . . Peak Influence 97 | 5 97 . Initial . | . . . Average 27 | 1 29 . Influence Increases 256 | 10 246 . Destroy 0b10 Robot/C 160 | . 160 . Destroy 0b10 Robot/NC 10 | 10 . . Destroy Leader 30 | . 30 . Successful Hack 10 | . 10 . Disable Machine 15 | . 15 . Destroy Structure 1 | . 1 . Lose Combat Pursuer 30 | . 30 . Influence Decreases 256 | 10 173 73 Entered New Map 36 | . . 36 Time Decay 220 | 10 173 37 Squads Dispatched 1 | . 1 . Investigation . | . . . Extermination . | . . . Reinforcement 1 | . 1 . Assault . | . . . Garrison . | . . . Intercept . | . . . Searches Triggered . | . . . Construction Impeded . | . . . Haulers Reinforced . | . . . Active Scanning Responses . | . . . Cargo Convoy Interrupts . | . . . Stealth | -11 -10 -10 --------- Run | Yrd Mat Sub Distress Signals 2 | . 2 . Communications Jammed . | . . . Distress Signals . | . . . Times Spotted 22 | . 10 12 Peak Tracking Total 10 | . 3 10 Tactical Retreats 2 | . 2 . Traps | -11 -10 -10 ------- Run | Yrd Mat Sub Traps Triggered 1 | . . 1 Indirectly . | . . . Trap Hack Attempts . | . . . Triggered . | . . . Disarmed . | . . . Reprogrammed . | . . . Reused . | . . . Traps Extracted . | . . . Installed . | . . . Triggered . | . . . Machines | -11 -10 -10 ---------- Run | Yrd Mat Sub Machines Disabled 1 | . 1 . Max in Single Turn 1 | . 1 . Machines Repaired . | . . . Machines Dismantled . | . . . Machines Sabotaged . | . . . Overloaded Fab Kills . | . . . Hacking | -11 -10 -10 --------- Run | Yrd Mat Sub Machines Accessed 3 | . 3 . Terminals 3 | . 3 . Fabricators . | . . . Repair Stations . | . . . Recycling Units . | . . . Scanalyzers . | . . . Garrison Access . | . . . Total Hacks 9 | . 9 . Successful 6 | . 6 . Failed 3 | . 3 . Catastrophic . | . . . Database Lockouts . | . . . Manual 9 | . 9 . Terminals 9 | . 9 . Fabricators . | . . . Repair Stations . | . . . Recycling Units . | . . . Scanalyzers . | . . . Garrison Access . | . . . Terminal Hacks 3 | . 3 . Robot Analysis 2 | . 2 . Terminal Index 1 | . 1 . Fabricator Hacks . | . . . Repair Station Hacks . | . . . Recycling Unit Hacks . | . . . Scanalyzer . | . . . Garrison Access Hacks . | . . . Unauthorized Hacks 3 | . 3 . Terminals 3 | . 3 . Botnet 3 | . 3 . Fabricators . | . . . Repair Stations . | . . . Recycling Units . | . . . Scanalyzers . | . . . Garrison Access . | . . . Data Cores Recovered . | . . . Used . | . . . Hacking Detections 3 | . 3 . Full Trace Events . | . . . Feedback Events . | . . . Feedback Blocked . | . . . Robot Schematics Acquired . | . . . Robots Built . | . . . Authchips . | . . . Time . | . . . Total Robot Build Rating . | . . . Part Schematics Acquired . | . . . Parts Built . | . . . Authchips . | . . . Time . | . . . Total Part Build Rating . | . . . Parts Repaired . | . . . Time . | . . . Parts Recycled . | . . . Recycled Matter . | . . . Retrieved Matter . | . . . Retrieved Components . | . . . Parts Scanalyzed . | . . . Part Schematics Acquired . | . . . Parts Damaged . | . . . Bothacking | -11 -10 -10 ------------ Run | Yrd Mat Sub Used RIF Installer . | . . . Robots Hacked . | . . . Non-combat . | . . . Combat . | . . . Robot Hacks Applied . | . . . Relay Couplers Released . | . . . Fabnet Peak Effective % . | . . . Robots Rewired . | . . . Allies Hacked . | . . . Hacks Repelled . | . . . Allies | -11 -10 -10 -------- Run | Yrd Mat Sub Total Allies . | . . . Largest Group . | . . . Highest-Rated Group . | . . . Highest-Rated Ally . | . . . Total Orders . | . . . Ally Attacks . | . . . Total Damage . | . . . Kills . | . . . Allies Corrupted . | . . . Allies Melted . | . . . Intel | -11 -10 -10 ------- Run | Yrd Mat Sub Active Infowar (turns) . | . . . Robot Analysis Total 2 | . 2 . Derelict Logs Recovered 2 | . . 2 Drone Launches . | . . . Drone Recoveries . | . . . Exploration | -11 -10 -10 ------------- Run | Yrd Mat Sub Turns Passed 759 | 47 512 200 Spaces Moved 363 | 23 255 85 Core . | . . . Treads . | . . . Legs 107 | 23 84 . Wheels 256 | . 171 85 Hover . | . . . Flight . | . . . Fastest Speed 80 | 120 80 185 Average Speed 164 | 120 161 185 Slowest Speed 185 | 120 185 185 Overloaded Moves . | . . . Propulsion Burnouts . | . . . Robots Hopped . | . . . Potential Cave-ins . | . . . Cave-ins Triggered . | . . . Exploration Rate (%) 15 | 3 33 9 Regions Visited 2 Branch Regions 1 Pre-discovered Areas . | . . . Known Exits Taken . | . . . Unknown Exits Taken 2 | 1 1 . Scrap Searched . | . . . Spaces Dug . | . . . Terrain Destroyed . | . . . Melee . | . . . Projectile . | . . . AOE . | . . . Terrain Rammed . | . . . Walls Destroyed . | . . . Machines Disabled . | . . . Actions | -11 -10 -10 --------- Run | Yrd Mat Sub Total 461 | 29 314 118 Wait 32 | . 8 24 Move 361 | 22 254 85 Hop . | . . . Pick Up 18 | . 17 1 Fast Attach 1 | . 1 . Attach 3 | . 1 2 Detach 1 | . 1 . Swap 4 | . 4 . Drop 7 | . 6 1 Fire 34 | 7 22 5 Melee . | . . . Ram . | . . . Kick . | . . . Crush . | . . . Escape Stasis . | . . . Rewire . | . . . Trap . | . . . Miscellaneous . | . . . Route ------- -11/Scrapyard -10/Materials (discovered 2 exits: [*Mat] / [*Sub]) -10/Subcaves History --------- Turn | Location | Event 18 | -11/Scrapyard | Discovered new exit (range 3) 48 | -11/Scrapyard | Entered Materials 375 | -10/Materials | Discovered new exit (range 3) 483 | -10/Materials | Build established: Hauler-Mutant 548 | -10/Materials | Discovered new exit (range 7) 560 | -10/Materials | Entered Subcaves 561 | -10/Subcaves | Approached by a straggling Scientist 566 | -10/Subcaves | Learned location of 1 exit from Materials 582 | -10/Subcaves | Learned Materials trap positions 686 | -10/Subcaves | Ambushed by swarm of Subdwellers 686 | -10/Subcaves | Ambushed by Subdwellers from Twisted Machinery 686 | -10/Subcaves | Ambushed by Subdwellers from Twisted Machinery 686 | -10/Subcaves | Ambushed by Subdwellers from Twisted Machinery 686 | -10/Subcaves | Ambushed by Subdwellers from Twisted Machinery 689 | -10/Subcaves | Core integrity fell below 50% 717 | -10/Subcaves | Core integrity fell below 20% 742 | -10/Subcaves | Lost 4 allies 760 | -10/Subcaves | Destroyed by 0Y-JET(R) with Subdweller Machine Gun Last Messages --------------- 00691_ NY-1UP(R) suffers critical hit (Destroy). 00691_ NY-1UP(R) destroyed. 00694_ AM-C2G(R) suffers critical hit (Destroy). 00694_ AM-C2G(R) destroyed. 00697_ HB-J1K(R) suffers critical hit (Destroy). 00697_ HB-J1K(R) destroyed. 00700_ EJ-02P(R) affixes Scrap Shield Fragment to Scrap Shield. 00700_ C5-I4D(R) suffers critical hit (Destroy). 00706_ CL-WVC(R) affixes Scrap Shield Fragment to Scrap Shield. 00706_ HV Slug penetrates C5-I4D(R). 00707_ Assault Rifle destroyed. 00709_ HV Slug penetrates IC-X9W(R). 00709_ IC-X9W(R) knocked back. 00711_ IC-X9W(R) affixes Scrap Shield Fragment to Scrap Shield. 00711_ 6L-T09(h) destroyed. 00718_ Lgt. Ion Engine destroyed. 00752_ Wheel destroyed. 00754_ IC-X9W(R) knocked back. 00754_ IC-X9W(R) destroyed. 00760_ Dropped Cargo Storage Unit. Map ----- +----------------------------------------------------+ | ?????????????????????????????????????????????????? | | ?????????????????????????????????????????????????? | | ?????????????????????????????????????????????????? | | ?????????????????????????????????????????????????? | | ?????????????????????????????????????????????????? | | ?????????????????????????????????????????????????? | | ?????????????????????????????????????????????????? | | ?????????????????????????????????????????????????? | | ?????????????????????????????????????????????????? | | ?????????????????????????????????????????????????? | | ?????????????????????????????????????????????????? | | ?????????????????????????????????????????????????? | | ?????????????????????????????????????????????????? | | ?????????????????????????????????????????????????? | | ?????????????????????????????????????????????????? | | ?????????????????????????????????????????????????? | | ?????????????????????????????????????????????????? | | ?????????????????????????????????????????????????? | | ?????????????????????????????????????????????????? | | ?????????????????????????????????????????????????? | | ?????????????????????????????????????????????????? | | ???????????????????#??????#######????????????????? | | ???????????????????# ????## ##???????????????? | | ???????????????????# ??## #???????????????? | | ??????????????????## ###[[ #????????????????? | | ????????????????### =[@[[ #?????????????????? | | ????????????????# =!== ####?????????????????? | | ????????????????# ! ##????????????????????? | | ????????????????# #### %R##????????????????????? | | ?????????????????????## %R%#????????????????????? | | ??????????????????????## R%=########?????????????? | | ???????????????????????# R# # ####??????????? | | ??????????????????????## R ##?????????? | | ?????????????????????# #?????????? | | ??????????????? # ##?????????? | | ??????????????? ##### #?????????? | | ???????????????# #### ##???# #?????????? | | ???????????????## #???#####????# #?????????? | | ????????????????######?????????????# ##?????????? | | ??????????????????????????????????## ##?????????? | | ??????????????????????????????????# #?????????? | | ?????????????????????????????????#" "#?????????? | | ????????????????????????????????# "" "#?????????? | | ????????????????????????????????# "" "#????????? | | ????????????????????????????????#"" "#????????? | | ????????????????????????????????#" "##????????? | | ???????????????????????????????? " "#?????????? | | ???????????????????????????????##" ^#?????????? | | ????????????????????????????????#" ##????????? | | ????????????????????????????????#"" "#????????? | +----------------------------------------------------+ Best States ------------- Heat Dissipation 25 Energy Generation 10 Energy Capacity 250 Matter Stores 300 Matter Capacity 300 Sight Range 16 Terrain Scan Density 10 Evasion (%) 55 Item Schematics ----------------- None Robot Schematics ------------------ None Fabricated ------------ Nothing Repaired ---------- Nothing Alien Tech Used ----------------- None Achievements -------------- None Challenges ------------ None Game ------ Seed VariableMultinovaScrapsphere Manual? 0 Play Time 00:10:26 Cumulative 109.5 hours Start 2025.08.17 @ 08:50:46 End 2025.08.17 @ 09:05:37 Sessions 1 Manual Loads 0 Difficulty Rogue Special Mode None Game No. 108 Rogue 108 Adventurer 0 Explorer 0 Win Type - Total 1 Types 1/0/0/0/0/0/0/0/0/0 Lore% 57 Gallery% 47 Achievement% 47 Wizard Run 0 Options --------- Layout 0 ASCII 0 Keyboard 0 Movement Mouse Keybinds 0 Fullscreen 2 Font 18/X11 Map View 76x50 Zoom Use 0% Tactical HUD 1 Map Filters NONE Filters NONE Steam 1 RUN: d14eef53-ff85-4baa-8ffc-5544e2f43fd8